Cogmind - Beta 16 @@@ ROGUE MODE // 2025.10.26 @ 11:56:51 Player: Minty Result: Destroyed by as-14967 with Assembled Gauss Rifle Performance ------------- Evolutions (3) 1500 Regions Visited (12) 2400 Robots Destroyed (79) 395 Value Destroyed (2587) 2587 Prototype IDs (41) 820 Alien Tech Used (0) 0 Bonus (3850) 3850 TOTAL SCORE: 11552 Bonus ------- High Alert Combat Kills 262 Follower Combat Kills 1362 Aligned with FarCom 300 Met Imprinter 300 Destroyed Z-Imprinter 1000 Triggered Deep Caves Wall 500 Exposed GOLEM Chamber 500 Friendly Fire -374 Cogmind --------- Core Integrity 0/700 Matter 117/300 Energy 350/350 System Corruption 0% Temperature Cool (0) Movement Walking (110) Location -7/Deep Caves Parts ------- > --- POWER (1) -------- Cooled Fission Core > --- PROPULSION (4) --- Heavy Treads Zionite Composite Leg I Assembled Alloy Leg > --- UTILITY (6) ------ Experimental Heat Sink Lightpack 2.0 GOLEM Unit > --- WEAPON (2) ------- Mini Grenade Launcher Plasma Sword > --- INVENTORY (40) --- Antimatter Reactor Zionite Light DM Reactor Wheel Wheel Compact Wheel Aerolev Unit Improved Airjet Zionite Glidesys I Zionite Glidesys I Nuclear Pulse Thruster Surveybot 24 Scanner Surveybot 24 Chip Phase Shifter Improved Propulsion Shielding Zionite Weapon Casing Zionite Weapon Casing System Restoration Module Gatling Laser Zionite Laser-S Advanced Variable Charge Gun EM Pulse Cannon EM Pulse Cannon EM Pulse Cannon Bore Cannon Bore Cannon Grenade Launcher Peak State ------------ > --- POWER ------------ Cooled Fission Core > --- PROPULSION ------- Heavy Treads Zionite Composite Leg I Assembled Alloy Leg > --- UTILITY ---------- Experimental Heat Sink Lightpack 2.0 GOLEM Unit > --- WEAPON ----------- Mini Grenade Launcher Plasma Sword > --- INVENTORY -------- Antimatter Reactor Zionite Light DM Reactor Wheel Wheel Compact Wheel Aerolev Unit Improved Airjet Zionite Glidesys I Zionite Glidesys I Nuclear Pulse Thruster Surveybot 24 Scanner Surveybot 24 Chip Phase Shifter Improved Propulsion Shielding Zionite Weapon Casing Zionite Weapon Casing System Restoration Module Gatling Laser Zionite Laser-S Advanced Variable Charge Gun EM Pulse Cannon EM Pulse Cannon EM Pulse Cannon Bore Cannon Bore Cannon Grenade Launcher [Rating: 108] Favorites ----------- Power Antimatter Reactor Engine Light Ion Engine Power Core Cooled Fission Core Reactor Antimatter Reactor Propulsion Aerolev Unit Treads Heavy Treads Leg Aluminum Leg Wheel Wheel Hover Unit Aerolev Unit Utility Lightpack 2.0 Device Improved Cooling System Storage Lightpack 2.0 Processor 0b10 Alert Chip Protection Improved Light Armor Plating Weapon Gatling Laser Energy Gun Gatling Laser Energy Cannon EM Pulse Cannon Ballistic Gun Precision Assault Rifle Ballistic Cannon Gauss Cannon Launcher Grenade Launcher Special Weapon CPS Tube Slashing Weapon Plasma Sword Build | -11 -10 -10 -10 -9 -8 -7 -7 -7 -7 -7 -7 -7 ------- Run | Yrd Mat Min Exi Min Mat Fac Was Fac Low Low Zio Dee Slots Evolved 6 | . . . . . 4 2 . . . . . . Power . | . . . . . . . . . . . . . Propulsion 2 | . . . . . 2 . . . . . . . Utility 4 | . . . . . 2 2 . . . . . . Weapon . | . . . . . . . . . . . . . Parts Attached 64 | . 8 . 1 . 9 14 6 11 1 . . 14 Power 6 | . 1 . . . 2 1 2 . . . . . Engine 3 | . 1 . . . 1 1 . . . . . . Core 2 | . . . . . 1 . 1 . . . . . Reactor 1 | . . . . . . . 1 . . . . . Propulsion 25 | . 3 . . . 4 6 1 7 . . . 4 Treads 4 | . . . . . . 1 1 . . . . 2 Leg 2 | . 1 . . . . . . . . . . 1 Wheel 4 | . . . . . . 4 . . . . . . Hover 15 | . 2 . . . 4 1 . 7 . . . 1 Flight . | . . . . . . . . . . . . . Utility 17 | . 2 . 1 . 1 3 1 3 . . . 6 Device 7 | . 1 . . . . 1 1 2 . . . 2 Storage 2 | . . . . . 1 . . . . . . 1 Processor 3 | . . . 1 . . 1 . 1 . . . . Hackware . | . . . . . . . . . . . . . Protection 5 | . 1 . . . . 1 . . . . . 3 Artifact . | . . . . . . . . . . . . . Weapon 16 | . 2 . . . 2 4 2 1 1 . . 4 Energy Gun 6 | . 1 . . . . 2 1 1 . . . 1 Energy Cannon 2 | . . . . . . . . . . . . 2 Ballistic Gun 1 | . . . . . . 1 . . . . . . Ballistic Cannon 1 | . . . . . . 1 . . . . . . Launcher 4 | . 1 . . . 2 . . . 1 . . . Special Weapon 1 | . . . . . . . . . . . . 1 Impact Weapon . | . . . . . . . . . . . . . Slashing Weapon 1 | . . . . . . . 1 . . . . . Piercing Weapon . | . . . . . . . . . . . . . Special Melee Weapon . | . . . . . . . . . . . . . Unidentified Prototypes 15 | . . . . . . 1 3 4 . . . 7 Parts Lost 28 | . 3 . . . 5 8 . 1 . . . 11 Power 5 | . 1 . . . 2 1 . . . . . 1 Propulsion 13 | . . . . . 3 4 . 1 . . . 5 Utility 4 | . . . . . . . . . . . . 4 Weapon 6 | . 2 . . . . 3 . . . . . 1 Highest Loss Streak 5 | . 3 . . . 4 5 . 1 . . . 5 To Critical Strikes . | . . . . . . . . . . . . . Average Backups 17 | . 6 8 7 6 4 10 15 22 25 24 28 29 Power 1 | . . . . . . . . 2 2 1 2 1 Propulsion 4 | . 3 4 4 4 1 . 2 5 6 6 7 9 Utility 3 | . . 2 1 2 2 2 3 5 5 4 4 6 Weapon 7 | . 1 2 1 . . 7 8 10 12 11 13 11 Tool/Special . | . . . . . . . . . . . . . Unused Backups 34 | . 2 . 4 . . 1 2 3 . . . 22 Power 3 | . . . . . . . . . . . . 3 Propulsion 5 | . 2 . . . . . . . . . . 3 Utility 12 | . . . 2 . . 1 1 . . . . 8 Weapon 14 | . . . 2 . . . 1 3 . . . 8 Tool/Special . | . . . . . . . . . . . . . Average Slot Usage (%) 79 | . 88 85 85 85 75 59 78 81 84 84 81 69 Engine 4 | . 13 14 14 14 3 3 3 . . . . . Core 1 | . . . . . 4 . 3 . . . . 5 Reactor 2 | . . . . . . . . 7 7 7 7 1 Treads 2 | . . . . . . 2 7 2 . . . 10 Leg 3 | . 24 . . . . . . . . . . . Wheel 2 | . . . . . . 5 17 4 . . . . Hover 16 | . 3 28 28 28 33 6 . 21 30 30 30 6 Device 4 | . 5 14 8 . . 1 . 2 7 7 7 7 Storage 8 | . 14 14 14 14 9 7 7 7 7 7 7 7 Processor 10 | . . . 6 14 9 13 15 18 15 15 15 2 Protection 3 | . 5 . . . . 2 6 1 . . . 11 Energy Gun 10 | . 12 . . . . 6 14 15 14 14 12 10 Launcher 4 | . 7 14 14 14 16 4 . . . . . 1 Peak Build Rating 108 | . 7 6 15 15 48 65 85 95 91 91 92 108 Average Rating 63 | . 6 6 10 15 45 54 75 87 90 89 90 97 On Entrance 46 | 6 6 6 6 15 15 47 55 85 91 91 91 92 Avg Prop Armor Cover (%) 13 | . . . . . . 11 13 15 . . . 6 Naked Turns . | . . . . . . . . . . . . . Heaviest Build 36 | 14 17 12 12 11 16 19 33 33 32 32 32 36 Greatest Support 140 | 20 20 12 12 12 28 36 36 33 33 37 33 140 Greatest Overweight (x) 5 | . 1 . . . . 5 1 3 . . . . Average Overweight (x) . | . . . . . . . . . . . . . Largest Inventory Capacity 40 | . 8 8 8 8 40 40 40 40 40 40 40 40 Average Capacity 31 | . 8 8 8 8 39 40 40 40 40 39 40 40 Most Carried 33 | . 8 8 8 8 7 13 22 27 27 29 33 33 Average Carried 18 | . 6 8 7 8 4 10 16 24 27 26 31 30 Final Capacity 40 | 8 8 8 8 8 40 40 40 40 40 40 40 40 Final Carried 31 | 6 8 8 8 8 3 11 22 27 27 29 31 26 Class Distribution -------------------- 74% | Hauler-Mutant 25% | Mutant Dominant Class ---------------- Mutant | -10/Materials Mutant | -10/Mines Mutant | -10/Exiles Mutant | -9/Mines Hauler-Mutant | -8/Materials Hauler-Mutant | -7/Factory Hauler-Mutant | -7/Waste Hauler-Mutant | -7/Factory Hauler-Mutant | -7/Lower Caves Hauler-Mutant | -7/Lower Caves Hauler-Mutant | -7/Zion Hauler-Mutant | -7/Deep Caves Resources | -11 -10 -10 -10 -9 -8 -7 -7 -7 -7 -7 -7 -7 ----------- Run | Yrd Mat Min Exi Min Mat Fac Was Fac Low Low Zio Dee Matter Collected 1467 | 200 178 . . 93 56 292 208 191 5 86 28 130 Remotely . | . . . . . . . . . . . . . Salvage Created 2403 | . 520 . . 60 213 545 60 406 20 81 . 498 Parts 142 | . 42 . . 9 12 28 . 21 2 7 . 21 Haulers Intercepted 3 | . 1 . . . . . . 2 . . . . Recyclers Shooed 5 | . 3 . . 1 . . . 1 . . . . Parts Field Recycled . | . . . . . . . . . . . . . Retrieved Matter . | . . . . . . . . . . . . . Parts Self-Destructed 14 | . . . . . . . . . 3 11 . . Prevented . | . . . . . . . . . . . . . Parts Restored . | . . . . . . . . . . . . . Kills | -11 -10 -10 -10 -9 -8 -7 -7 -7 -7 -7 -7 -7 ------- Run | Yrd Mat Min Exi Min Mat Fac Was Fac Low Low Zio Dee Combat Hostiles Destroyed 85 | . 14 . . 6 5 6 . 7 1 5 . 41 Melee 1 | . . . . . . . . . . . . 1 Guns 19 | . 3 . . . . 4 . 6 . 2 . 4 Cannons 2 | . . . . . . 2 . . . . . . AOE 61 | . 11 . . 6 5 . . 1 1 3 . 34 Classes Destroyed 16 | . 8 . . . . 2 . 1 . 1 . 4 Worker 7 | . 3 . . . . 3 . 1 . . . . Builder 6 | . 2 . . 1 2 1 . . . . . . Hauler 3 | . 1 . . . . . . 2 . . . . Recycler 6 | . 1 . . . 1 3 . 1 . . . . Operator 3 | . 1 . . . 1 . . 1 . . . . Watcher 2 | . 2 . . . . . . . . . . . Swarmer 11 | . 3 . . 4 . . . . . 4 . . Grunt 21 | . 11 . . 2 5 . . 2 1 . . . Sentry 6 | . . . . . . 4 . 2 . . . . Hunter 5 | . . . . . . 2 . 3 . . . . Z-Light 5 | . . . . . . . . . . . . 5 Master Thief 1 | . . . . . . . . . . 1 . . Assembler 1 | . . . . . . . . . . . . 1 Assembled 35 | . . . . . . . . . . . . 35 Golem 1 | . . . . . . . . . . . . 1 Martyr 1 | . . . . . . . . 1 . . . . Best Kill Streak 36 | . 9 . . 5 5 6 . 3 1 4 . 36 Combat Bots Only 35 | . 5 . . 4 3 2 . 1 1 4 . 35 Max Kills in Single Turn 9 | . 3 . . 3 3 3 . 4 1 3 . 9 Gunslinging 1 | . . . . . . . . . . . . 1 Exploded 9 | . 2 . . 2 2 . . 1 1 3 . 9 Melee 1 | . . . . . . . . . . . . 1 Uniques/NPCs Destroyed 1 | . . . . . . . . . . . . 1 Z-Imprinter (-7/Deep Caves) Combat | -11 -10 -10 -10 -9 -8 -7 -7 -7 -7 -7 -7 -7 -------- Run | Yrd Mat Min Exi Min Mat Fac Was Fac Low Low Zio Dee Hostile Shots Fired 516 | . 58 . . 7 37 228 . 62 4 30 . 90 Missed 198 | . 23 . . 3 16 90 . 31 4 12 . 19 Hits 318 | . 35 . . 4 21 138 . 31 . 18 . 71 Melee 11 | . . . . . . . . . . 3 . 8 Projectile 307 | . 35 . . 4 21 138 . 31 . 15 . 63 Critical Strikes 3 | . 1 . . . 1 . . . . 1 . . Damage Taken 4777 | . 424 . . 36 362 1047 . 454 20 344 . 2090 Core 857 | . 86 . . 8 47 245 . 141 20 28 . 282 Absorbed by Shields . | . . . . . . . . . . . . . Reduced by Siege Mode 22 | . . . . . . . . . . . . 22 Redirected to Shielding 176 | . . . . . . . . . . . . 176 Regen/Repaired (Parts) 549 | . . . . . . . 154 218 . 177 . . Core Remaining (%) 84 | 100 . . . 62 91 . . . . . . . Volleys Fired 152 | . 42 . . 6 6 27 2 26 4 10 . 29 Largest 2 | . 2 . . 1 2 2 2 2 2 2 . 2 Hottest 320 | . 80 . . 30 60 149 160 320 320 320 . 140 Shots Fired 254 | . 66 . . 6 12 47 6 43 7 18 . 49 Gun 176 | . 49 . . . . 30 6 43 5 17 . 26 Cannon 24 | . . . . . . 16 . . . . . 8 Launcher 52 | . 17 . . 6 12 1 . . 2 1 . 13 Special 2 | . . . . . . . . . . . . 2 Kinetic 16 | . . . . . . 16 . . . . . . Thermal 127 | . . . . . . 30 6 43 5 17 . 26 Explosive 52 | . 17 . . 6 12 1 . . 2 1 . 13 Electromagnetic 57 | . 49 . . . . . . . . . . 8 Robot Hit Streak 10 | . 7 . . 10 3 9 4 6 5 5 . 6 Robot Miss Streak 5 | . 3 . . . 2 3 3 5 2 3 . 3 Penetration Max . | . . . . . . . . . . . . . Secondary Targets 1 | . . . . . . . . . . . . 1 Max Gunslinging Chain 1 | . . . . . . . . . . . . 1 Shots Hit Robots 172 | . 37 . . 3 5 38 3 27 6 10 . 43 Core Hits 254 | . 36 . . 14 14 26 2 25 3 13 . 121 Critical Kills . | . . . . . . . . . . . . . Critical Parts Destroyed . | . . . . . . . . . . . . . Critical Strikes 5 | . 2 . . . . 3 . . . . . . Burn 1 | . . . . . . 1 . . . . . . Blast 2 | . . . . . . 2 . . . . . . Corrupt 2 | . 2 . . . . . . . . . . . Melee Attacks 5 | . . . . . . . . . . . . 5 Impact . | . . . . . . . . . . . . . Slashing 5 | . . . . . . . . . . . . 5 Piercing . | . . . . . . . . . . . . . Sneak Attacks . | . . . . . . . . . . . . . Combat Hostiles . | . . . . . . . . . . . . . Follow-up Attacks . | . . . . . . . . . . . . . Damage Inflicted 10606 | . 1561 . . 451 765 968 81 1441 304 565 . 4470 Guns 2803 | . 376 . . . . 501 81 713 172 385 . 575 Cannons 510 | . . . . . . 386 . . . . . 124 Explosions 6995 | . 1168 . . 451 765 77 . 708 132 180 . 3514 Melee 246 | . . . . . . . . . . . . 246 Ramming 52 | . 17 . . . . 4 . 20 . . . 11 Kinetic 386 | . . . . . . 386 . . . . . . Thermal 3167 | . 32 . . . . 501 81 1421 172 385 . 575 Explosive 6255 | . 1136 . . 451 765 77 . . 132 180 . 3514 Electromagnetic 500 | . 376 . . . . . . . . . . 124 Impact . | . . . . . . . . . . . . . Slashing 246 | . . . . . . . . . . . . 246 Piercing . | . . . . . . . . . . . . . Highest Corruption 5 | . . . . . . 3 3 5 2 2 2 . Average Corruption 2 | . . . . . . 3 3 2 2 2 2 . Corruption Purged 5 | . . . . . . . . 5 . . . . Corruption Blocked . | . . . . . . . . . . . . . Effects 29 | . . . . . . 4 7 12 3 3 . . Message Errors 7 | . . . . . . . 1 5 1 . . . Matter Fused 7 | . . . . . . 3 1 2 1 . . . Heat Flow Errors 3 | . . . . . . . . 1 1 1 . . Energy Discharges 1 | . . . . . . . 1 . . . . . Data Loss (minor) 5 | . . . . . . . 1 3 . 1 . . Data Loss (major) 2 | . . . . . . 1 1 . . . . . Misfires 2 | . . . . . . . 2 . . . . . Weapon Failures 2 | . . . . . . . . 1 . 1 . . Overload Shots 7 | . . . . . . . . 2 1 4 . . Effects 1 | . . . . . . . . . . 1 . . Energy Bleed 1 | . . . . . . . . . . 1 . . Overflow Damage 418 | . . . . . . . . 191 4 . . 223 Projectiles 12 | . . . . . . . . . . . . 12 Explosions 280 | . . . . . . . . 177 4 . . 99 Melee 126 | . . . . . . . . 14 . . . 112 Knockbacks 2 | . . . . . . 2 . . . . . . Impact . | . . . . . . . . . . . . . Kinetic 2 | . . . . . . 2 . . . . . . Secondary . | . . . . . . . . . . . . . Self-Inflicted Damage 369 | . 60 . . . 37 45 . 50 . 33 . 144 Shots 10 | . 2 . . . 1 1 . 1 . 1 . 4 Rammed 9 | . 1 . . 1 . 1 . 1 . . . 5 Targets Rammed 13 | . 5 . . 1 . 1 . 1 . . . 5 Kicked 4 | . 4 . . . . . . . . . . . Crushed . | . . . . . . . . . . . . . Highest Temperature 384 | . 159 . . . 24 166 78 384 192 344 . 24 Average Temperature 74 | . 52 . . . 9 56 41 93 71 158 . 10 Received Heat Transfer 929 | . 165 . . . 153 228 . 48 9 36 . 290 Effects 3 | . . . . . . . . 1 . 2 . . Interference 2 | . . . . . . . . . . 2 . . Damage (minor) 1 | . . . . . . . . 1 . . . . Siege Activations 1 | . . . . . . . . . . . . 1 Total Turns 8 | . . . . . . . . . . . . 8 Longest Duration 8 | . . . . . . . . . . . . 8 Martial Activations . | . . . . . . . . . . . . . Shielding Activations . | . . . . . . . . . . . . . Robots Disrupted . | . . . . . . . . . . . . . Combat Hostiles . | . . . . . . . . . . . . . Robots Corrupted 1 | . . . . . . . . . . . . 1 Combat Hostiles 1 | . . . . . . . . . . . . 1 Parts Fried 1 | . 1 . . . . . . . . . . . Impact Corruptions 1 | . . . . . . . . 1 . . . . Robots Melted 1 | . . . . . . . . . . . . 1 Combat Hostiles 1 | . . . . . . . . . . . . 1 Parts Melted 13 | . . . . . . 2 . 1 . 2 . 8 Heat Transferred 5130 | . 50 . . . . 1116 99 1897 237 711 . 1020 Parts Sabotaged . | . . . . . . . . . . . . . Parts Stolen 2 | . . . . . . . . . . 2 . . Parts Stripped . | . . . . . . . . . . . . . Power Chain Reactions 1 | . 1 . . . . . . . . . . . Alert | -11 -10 -10 -10 -9 -8 -7 -7 -7 -7 -7 -7 -7 ------- Run | Yrd Mat Min Exi Min Mat Fac Was Fac Low Low Zio Dee Maximum Alert Level 5 | . 1 . . . . . . 5 . . . . Low Security (%) 65 | . 80 100 . 100 100 100 100 8 . . . . Level 1 9 | . 20 . . . . . . 15 . . . . Level 2 1 | . . . . . . . . 3 . . . . Level 3 12 | . . . . . . . . 40 . . . . Level 4 2 | . . . . . . . . 9 . . . . Level 5 7 | . . . . . . . . 23 . . . . High Security . | . . . . . . . . . . . . . Max Security . | . . . . . . . . . . . . . Peak Influence 1850 | . 303 99 . 119 152 80 15 1850 . . . . Initial 99 | . . 99 . . 18 64 10 . . . . . Average 370 | . 147 94 . 66 89 39 1 979 . . . . Influence Increases 3709 | . 567 . . 139 274 218 16 2240 42 213 . . Destroy 0b10 Robot/C 1432 | . 280 . . 96 80 96 . 704 32 144 . . Destroy 0b10 Robot/NC 166 | . 50 . . 4 12 28 . 72 . . . . Destroy Leader 356 | . 56 . . 16 16 48 . 188 . 32 . . Allied During Kill 747 | . . . . . . . . 700 10 37 . . Successful Hack 43 | . 34 . . . 5 . . 4 . . . . Select Force Hacks 64 | . . . . . 24 . . 40 . . . . Disable Machine 231 | . 75 . . . . 12 . 144 . . . . Anti-Garrison Action 160 | . . . . . . . . 160 . . . . Destroy Structure 375 | . 57 . . 23 41 10 16 228 . . . . Partial Spotted 48 | . . . . . 24 24 . . . . . . Lose Combat Pursuer 87 | . 15 . . . 72 . . . . . . . Influence Decreases 3709 | . 312 166 89 90 181 330 46 390 795 369 941 . Entered New Map 2209 | . . 156 89 . 31 78 20 . 685 209 941 . Time Decay 1302 | . 282 10 . 90 100 184 26 360 110 140 . . Lost Part 158 | . 30 . . . 50 68 . 10 . . . . Lost Ally 40 | . . . . . . . . 20 . 20 . . Squads Dispatched 21 | . 2 . . . 3 1 . 15 . . . . Investigation 11 | . 2 . . . 3 1 . 5 . . . . Extermination 3 | . . . . . . . . 3 . . . . Reinforcement 4 | . . . . . . . . 4 . . . . Assault . | . . . . . . . . . . . . . Garrison 3 | . . . . . . . . 3 . . . . Intercept . | . . . . . . . . . . . . . Searches Triggered . | . . . . . . . . . . . . . Construction Impeded 1 | . . . . . . . . 1 . . . . Haulers Reinforced 2 | . . . . . . . . 2 . . . . Active Scanning Responses . | . . . . . . . . . . . . . Cargo Convoy Interrupts . | . . . . . . . . . . . . . Stealth | -11 -10 -10 -10 -9 -8 -7 -7 -7 -7 -7 -7 -7 --------- Run | Yrd Mat Min Exi Min Mat Fac Was Fac Low Low Zio Dee Distress Signals 10 | . 1 . . . 4 . . 5 . . . . Communications Jammed . | . . . . . . . . . . . . . Distress Signals . | . . . . . . . . . . . . . Times Spotted 157 | . 20 . . 7 22 6 1 30 4 11 . 56 Peak Tracking Total 36 | . 6 . . 3 9 3 1 5 2 4 . 36 Tactical Retreats 5 | . 1 . . . 3 . . . . . . 1 Traps | -11 -10 -10 -10 -9 -8 -7 -7 -7 -7 -7 -7 -7 ------- Run | Yrd Mat Min Exi Min Mat Fac Was Fac Low Low Zio Dee Traps Triggered 11 | . 2 . . . . 5 . 4 . . . . Indirectly . | . . . . . . . . . . . . . Trap Hack Attempts . | . . . . . . . . . . . . . Triggered . | . . . . . . . . . . . . . Disarmed . | . . . . . . . . . . . . . Reprogrammed . | . . . . . . . . . . . . . Reused . | . . . . . . . . . . . . . Traps Reconfigurated 5 | . . . . . . 3 . 2 . . . . Traps Extracted . | . . . . . . . . . . . . . Installed . | . . . . . . . . . . . . . Triggered . | . . . . . . . . . . . . . Machines | -11 -10 -10 -10 -9 -8 -7 -7 -7 -7 -7 -7 -7 ---------- Run | Yrd Mat Min Exi Min Mat Fac Was Fac Low Low Zio Dee Machines Disabled 19 | . 5 . . . . 1 . 12 . . . 1 Max in Single Turn 4 | . 2 . . . . 1 . 4 . . . 1 Garrison Access 1 | . . . . . . . . 1 . . . . Machines Repaired . | . . . . . . . . . . . . . Machines Dismantled . | . . . . . . . . . . . . . Machines Sabotaged 1 | . . . . . . . . 1 . . . . Overloaded Fab Kills . | . . . . . . . . . . . . . Hacking | -11 -10 -10 -10 -9 -8 -7 -7 -7 -7 -7 -7 -7 --------- Run | Yrd Mat Min Exi Min Mat Fac Was Fac Low Low Zio Dee Machines Accessed 23 | . 6 . 2 1 5 . . 8 . 1 . . Terminals 14 | . 5 . . . 4 . . 5 . . . . Fabricators . | . . . . . . . . . . . . . Repair Stations . | . . . . . . . . . . . . . Recycling Units 1 | . 1 . . . . . . . . . . . Scanalyzers 3 | . . . . . 1 . . 2 . . . . Garrison Access 1 | . . . . . . . . 1 . . . . Total Hacks 47 | . 18 . 2 1 11 . . 14 . 1 . . Successful 24 | . 9 . 2 1 5 . . 6 . 1 . . Failed 22 | . 9 . . . 5 . . 8 . . . . Catastrophic 4 | . 2 . . . . . . 2 . . . . Database Lockouts 1 | . . . . . 1 . . . . . . . Manual 27 | . 11 . 1 . 6 . . 4 . . 5 . Terminals 31 | . 15 . . . 8 . . 8 . . . . Fabricators . | . . . . . . . . . . . . . Repair Stations . | . . . . . . . . . . . . . Recycling Units 3 | . 3 . . . . . . . . . . . Scanalyzers 7 | . . . . . 3 . . 4 . . . . Garrison Access 2 | . . . . . . . . 2 . . . . Terminal Hacks 11 | . 5 . 2 1 1 . . 1 . 1 . . Record 1 | . . . 1 . . . . . . . . . Robot Analysis 1 | . 1 . . . . . . . . . . . Prototype ID Bank 1 | . 1 . . . . . . . . . . . Open Door 2 | . . . . 1 . . . . . 1 . . Branch Access Points 1 | . 1 . . . . . . . . . . . Alert Level 2 | . 1 . . . 1 . . . . . . . Locate Traps 1 | . . . . . . . . 1 . . . . Zone Layout 1 | . 1 . . . . . . . . . . . Proto ID Catalog 1 | . . . 1 . . . . . . . . . Fabricator Hacks . | . . . . . . . . . . . . . Repair Station Hacks . | . . . . . . . . . . . . . Recycling Unit Hacks 3 | . 3 . . . . . . . . . . . Process 1 | . 1 . . . . . . . . . . . Report Inventory 1 | . 1 . . . . . . . . . . . Retrieve Matter 1 | . 1 . . . . . . . . . . . Scanalyzer 3 | . . . . . 1 . . 2 . . . . Retrieve Study 3 | . . . . . 1 . . 2 . . . . Garrison Access Hacks . | . . . . . . . . . . . . . Unauthorized Hacks 7 | . 1 . . . 3 . . 3 . . . . Terminals 5 | . 1 . . . 2 . . 2 . . . . Assimilate 1 | . . . . . 1 . . . . . . . Disrupt 1 | . 1 . . . . . . . . . . . Sabotage 3 | . . . . . 1 . . 2 . . . . Fabricators . | . . . . . . . . . . . . . Repair Stations . | . . . . . . . . . . . . . Recycling Units . | . . . . . . . . . . . . . Scanalyzers 1 | . . . . . 1 . . . . . . . Extract 1 | . . . . . 1 . . . . . . . Garrison Access 1 | . . . . . . . . 1 . . . . Jam 1 | . . . . . . . . 1 . . . . Data Cores Recovered . | . . . . . . . . . . . . . Used . | . . . . . . . . . . . . . Hacking Detections 14 | . 5 . . . 4 . . 5 . . . . Full Trace Events 5 | . 2 . . . 1 . . 2 . . . . Feedback Events . | . . . . . . . . . . . . . Feedback Blocked . | . . . . . . . . . . . . . Robot Schematics Acquired . | . . . . . . . . . . . . . Robots Built . | . . . . . . . . . . . . . Authchips . | . . . . . . . . . . . . . Time . | . . . . . . . . . . . . . Total Robot Build Rating . | . . . . . . . . . . . . . Part Schematics Acquired 1 | . . . . . 1 . . . . . . . Parts Built . | . . . . . . . . . . . . . Authchips . | . . . . . . . . . . . . . Time . | . . . . . . . . . . . . . Total Part Build Rating . | . . . . . . . . . . . . . Part Studies Acquired 2 | . . . . . 1 . . 1 . . . . Parts Repaired . | . . . . . . . . . . . . . Time . | . . . . . . . . . . . . . Parts Recycled . | . . . . . . . . . . . . . Recycled Matter 46 | . 46 . . . . . . . . . . . Retrieved Matter 46 | . 46 . . . . . . . . . . . Retrieved Components . | . . . . . . . . . . . . . Parts Scanalyzed . | . . . . . . . . . . . . . Part Schematics Acquired . | . . . . . . . . . . . . . Parts Damaged . | . . . . . . . . . . . . . Bothacking | -11 -10 -10 -10 -9 -8 -7 -7 -7 -7 -7 -7 -7 ------------ Run | Yrd Mat Min Exi Min Mat Fac Was Fac Low Low Zio Dee Used RIF Installer . | . . . . . . . . . . . . . Robots Hacked . | . . . . . . . . . . . . . Non-combat . | . . . . . . . . . . . . . Combat . | . . . . . . . . . . . . . Robot Hacks Applied . | . . . . . . . . . . . . . Relay Couplers Released . | . . . . . . . . . . . . . Fabnet Peak Effective % . | . . . . . . . . . . . . . Robots Rewired . | . . . . . . . . . . . . . Allies Hacked 1 | . . . . . . . . 1 . . . . Hacks Repelled . | . . . . . . . . . . . . . Allies | -11 -10 -10 -10 -9 -8 -7 -7 -7 -7 -7 -7 -7 -------- Run | Yrd Mat Min Exi Min Mat Fac Was Fac Low Low Zio Dee Total Allies 31 | . . 2 . . 1 . 20 . . . 8 . Largest Group 20 | . . 2 2 . 1 . 20 15 8 8 14 11 Highest-Rated Group 541 | . . 44 44 . 10 . 541 471 246 246 364 281 Highest-Rated Ally 35 | . . 31 31 . 10 . 35 35 35 35 31 31 Total Orders . | . . . . . . . . . . . . . Ally Attacks 218 | . . . . . . . 13 119 11 38 . 37 Total Damage 8626 | . . . . . . . 978 5408 162 1094 . 984 Kills 69 | . . . . . . . 6 50 2 6 . 5 Allies Corrupted 1 | . . . . . . . . . . . . 1 Allies Melted . | . . . . . . . . . . . . . Intel | -11 -10 -10 -10 -9 -8 -7 -7 -7 -7 -7 -7 -7 ------- Run | Yrd Mat Min Exi Min Mat Fac Was Fac Low Low Zio Dee Active Infowar (turns) 810 | . 288 35 71 . . . 1 415 . . . . Optics 415 | . . . . . . . . 415 . . . . Seismic 394 | . 288 35 71 . . . . . . . . . Triangulation 1 | . . . . . . . 1 . . . . . Robot Analysis Total 1 | . 1 . . . . . . . . . . . Derelict Logs Recovered 4 | . . . . 1 . . . . 1 2 . . Drone Launches . | . . . . . . . . . . . . . Drone Recoveries . | . . . . . . . . . . . . . Exploration | -11 -10 -10 -10 -9 -8 -7 -7 -7 -7 -7 -7 -7 ------------- Run | Yrd Mat Min Exi Min Mat Fac Was Fac Low Low Zio Dee Turns Passed 4170 | . 670 35 129 212 202 414 332 888 233 298 271 486 Spaces Moved 4836 | 1 499 41 219 344 312 340 255 1342 246 487 474 276 Core 11 | . . . . . . 11 . . . . . . Treads 218 | . . . . . . 37 . . . . . 181 Legs 388 | 1 380 . . . . . . . . . . 7 Wheels 610 | . . . . . . 118 255 237 . . . . Hover 3609 | . 119 41 219 344 312 174 . 1105 246 487 474 88 Flight . | . . . . . . . . . . . . . Fastest Speed 34 | 120 56 56 56 56 48 48 80 38 38 34 38 38 Average Speed 61 | 120 105 56 56 56 48 86 88 48 38 37 38 119 Slowest Speed 300 | 120 190 56 56 56 52 300 95 275 38 38 38 160 Overloaded Moves 3 | . . . . . . . . . . 3 . . Propulsion Burnouts . | . . . . . . . . . . . . . Robots Hopped . | . . . . . . . . . . . . . Potential Cave-ins 4 | . . . . . 2 . . . . 2 . . Cave-ins Triggered . | . . . . . . . . . . . . . Exploration Rate (%) 49 | 2 80 10 60 78 31 10 93 40 56 61 70 56 Regions Visited 12 Branch Regions 7 Pre-discovered Areas 3 | . . . 1 1 . . . . . . 1 . Known Exits Taken 1 | . 1 . . . . . . . . . . . Unknown Exits Taken 9 | 1 . 1 1 1 1 . . 1 1 1 1 . Scrap Searched 5 | . . . . 1 . . . . 2 . 2 . Spaces Dug . | . . . . . . . . . . . . . Terrain Destroyed 196 | . 56 . . 29 63 9 1 20 5 11 . 2 Melee . | . . . . . . . . . . . . . Projectile 9 | . . . . . . 2 1 2 . 2 . 2 AOE 187 | . 56 . . 29 63 7 . 18 5 9 . . Terrain Rammed . | . . . . . . . . . . . . . Walls Destroyed . | . . . . . . . . . . . . . Machines Disabled . | . . . . . . . . . . . . . Actions | -11 -10 -10 -10 -9 -8 -7 -7 -7 -7 -7 -7 -7 --------- Run | Yrd Mat Min Exi Min Mat Fac Was Fac Low Low Zio Dee Total 5718 | . 576 52 226 356 347 403 354 1525 376 576 565 362 Wait 504 | . 5 12 1 6 18 4 76 112 125 52 86 7 Move 4825 | . 498 40 218 343 311 340 254 1341 245 486 473 276 Hop . | . . . . . . . . . . . . . Pick Up 81 | . 9 . 2 . 2 11 8 10 . 24 2 13 Fast Attach 35 | . 5 . . . 3 14 4 5 . 2 . 2 Attach 24 | . 2 . . . 5 3 . 3 . . 2 9 Detach 14 | . . . . . . 1 4 5 . . 2 2 Swap 41 | . 4 . 1 . 1 2 6 9 2 2 . 14 Drop 11 | . 6 . 4 . 1 . . . . . . . Fire 152 | . 42 . . 6 6 27 2 26 4 10 . 29 Melee 5 | . . . . . . . . . . . . 5 Ram 3 | . 1 . . 1 . . . 1 . . . . Kick 4 | . 4 . . . . . . . . . . . Crush 6 | . . . . . . 1 . . . . . 5 Escape Stasis 13 | . . . . . . . . 13 . . . . Rewire . | . . . . . . . . . . . . . Trap . | . . . . . . . . . . . . . Miscellaneous . | . . . . . . . . . . . . . Route ------- -11/Scrapyard -10/Materials (discovered 2 exits: [*Mat] / *Min) -10/Mines -10/Exiles -9/Mines -8/Materials -7/Factory -7/Waste -7/Factory (discovered 2 exits: [*Fac] / [*Low]) -7/Lower Caves -7/Lower Caves -7/Zion -7/Deep Caves History --------- Turn | Location | Event 1 | -11/Scrapyard | Discovered new exit (range 0) 1 | -11/Scrapyard | Entered Materials 179 | -10/Materials | Discovered new exit (range 16) 322 | -10/Materials | Build established: Mutant 324 | -10/Materials | Identified exit to Mines 325 | -10/Materials | Discovered new exit (range 16) 333 | -10/Materials | Lost 3 parts (1p2w) 671 | -10/Materials | Entered Mines 675 | -10/Mines | Met a Derelict bent on vengeance 691 | -10/Mines | Deemed a non-threat by the Exiles lab entrance 691 | -10/Mines | Discovered new exit (range 5) 706 | -10/Mines | Entered Exiles 706 | -10/Exiles | Accompanied by 2 allies 722 | -10/Exiles | Met 8R-AWN 730 | -10/Exiles | Met EX-HEX 736 | -10/Exiles | Led the pair of lost Derelicts to a safe place 745 | -10/Exiles | Met EX-BIN 751 | -10/Exiles | Aligned with FarCom system 752 | -10/Exiles | Given EX-Vault access code 766 | -10/Exiles | Opened EX-Vault 771 | -10/Exiles | Found Lightpack 2.0 774 | -10/Exiles | Found Trap Reconfigurator 777 | -10/Exiles | Found 0b10 Alert Chip 790 | -10/Exiles | Warned to stay clear of 0b10 Research branches 808 | -10/Exiles | Met EX-DEC 812 | -10/Exiles | Learned location of Zion (-7) 828 | -10/Exiles | Discovered new exit (range 11) 835 | -10/Exiles | Stole three prototypes: 0b10 Alert Chip, Lightpack 2.0, Trap Reconfigurator 835 | -10/Exiles | Entered Mines 892 | -9/Mines | Met a Derelict who couldn't figure out how to use a Trap Extractor 932 | -9/Mines | Received a Mining Laser from a helpful Derelict 1040 | -9/Mines | Discovered new exit (range 7) 1047 | -9/Mines | Entered Materials 1047 | -8/Materials | Evolved 4 slots: Propulsion x2, Utility x2 1061 | -8/Materials | Central database locked down 1227 | -8/Materials | Discovered new exit (range 15) 1243 | -8/Materials | Lost 4 parts (1p3n) 1249 | -8/Materials | Entered Factory 1249 | -7/Factory | Evolved 2 slots: Utility x2 1251 | -7/Factory | FarCom data flow suspended 1353 | -7/Factory | Build established: Hauler-Mutant 1407 | -7/Factory | Lost 5 parts (1p3n1w) 1663 | -7/Factory | Sucked down chute 1663 | -7/Factory | Entered Waste 1664 | -7/Waste | Joined by Warlord forces that had cleared the area 1753 | -7/Waste | A Compactor rumbled back to life 1753 | -7/Waste | Spotted C-40 Crusher 1758 | -7/Waste | Allies destroyed C-40 Crusher 1789 | -7/Waste | Lost 5 allies 1955 | -7/Waste | Discovered new exit (range 12) 1995 | -7/Waste | Entered Factory 1995 | -7/Factory | Accompanied by 15 allies 2237 | -7/Factory | Garrison activated, responded to threat 2633 | -7/Factory | Core integrity fell below 50% 2646 | -7/Factory | Discovered new exit (range 17) 2808 | -7/Factory | Discovered new exit (range 9) 2883 | -7/Factory | Entered Lower Caves 2883 | -7/Lower Caves | Accompanied by 8 allies 2883 | -7/Lower Caves | Spotted 57-QGM(f) 2885 | -7/Lower Caves | Encountered a Master Thief 2889 | -7/Lower Caves | Allies destroyed 57-QGM(f) 2923 | -7/Lower Caves | Encountered a Warlord checkpoint 2995 | -7/Lower Caves | Learned Factory stockpile data 2997 | -7/Lower Caves | Discovered new exit (range 12) 3116 | -7/Lower Caves | Entered another Lower Caves area 3116 | -7/Lower Caves | Accompanied by 8 allies 3116 | -7/Lower Caves | Spotted I8-L3Y(f) 3117 | -7/Lower Caves | Trap Reconfigurator stolen by Master Thief 3118 | -7/Lower Caves | Encountered a Master Thief 3123 | -7/Lower Caves | Spotted RL-5E5(f) 3124 | -7/Lower Caves | Encountered a Master Thief 3130 | -7/Lower Caves | Lightpack 2.0 stolen by Master Thief 3131 | -7/Lower Caves | Destroyed RL-5E5(f) 3207 | -7/Lower Caves | Learned 4 Factory zone layouts 3274 | -7/Lower Caves | Encountered a Warlord checkpoint 3304 | -7/Lower Caves | Spotted B-75 Beast 3355 | -7/Lower Caves | Allies destroyed B-75 Beast 3380 | -7/Lower Caves | Discovered new exit (range 7) 3414 | -7/Lower Caves | Entered Zion 3414 | -7/Zion | Accompanied by 6 allies 3423 | -7/Zion | Found CR-A16's Pointy Stick 3443 | -7/Zion | System corruption cleaned by Quarantine Array 3483 | -7/Zion | Acquired unknown access codes intercepted by a Zionite 3489 | -7/Zion | Gained Derelict followers 3503 | -7/Zion | Met Imprinter 3523 | -7/Zion | Learned location of Recycling (-7) 3526 | -7/Zion | Gained Derelict followers 3537 | -7/Zion | Given A8's code to call for help 3596 | -7/Zion | Opened final containment barrier to the Deep Caves 3603 | -7/Zion | Discovered new exit (range 3) 3603 | -7/Zion | Saw the warning signs outside the Deep Caves entrance 3685 | -7/Zion | Entered Deep Caves 3685 | -7/Deep Caves | Accompanied by 11 allies 3718 | -7/Deep Caves | Found Prototype Protection 3718 | -7/Deep Caves | Identified Zio. Weapon Casing 3770 | -7/Deep Caves | Found Zio. Weapon Casing 3780 | -7/Deep Caves | Z-Facility disabled 3791 | -7/Deep Caves | Lost 4 parts (1p3n) 3803 | -7/Deep Caves | Found Zio. Weapon Casing 4024 | -7/Deep Caves | Attached CPS modules to Surveybot 24. 4035 | -7/Deep Caves | Found Surveybot 24 Chip 4039 | -7/Deep Caves | Found Surveybot 24 Scanner 4069 | -7/Deep Caves | Spotted AG-18126 4073 | -7/Deep Caves | Core integrity fell below 20% 4082 | -7/Deep Caves | Destroyed AG-18126 4107 | -7/Deep Caves | Triggered Deep Caves wall 4111 | -7/Deep Caves | Exposed GOLEM chamber 4130 | -7/Deep Caves | Spotted AS-05879 4133 | -7/Deep Caves | Destroyed AS-05879 4141 | -7/Deep Caves | Spotted AS-47182 4153 | -7/Deep Caves | Found GOLEM Unit 4154 | -7/Deep Caves | Spotted AG-21992 4171 | -7/Deep Caves | Destroyed by as-14967 with Assembled Gauss Rifle Last Messages --------------- 04147_ Slammed into AG-33834. 04148_ A GOLEM Unit tumbles out of the Wall Chamber. 04153_ Acquired GOLEM Unit. 04158_ Destroyed Asb. Hover System. 04158_ as-51768 destroyed. 04158_ A GOLEM Unit tumbles out of the Wall Chamber. 04159_ Penetrated by Slug. 04159_ Hvy. Treads destroyed. 04160_ GOLEM Unit beginning Asb. Alloy Leg integration. 04160_ Destroyed Asb. P-sword. 04161_ Penetrated by Slug. 04164_ AG-21992: "DSI9AT1D G8OHIBQ29FWG 26R186 QD12WHW8W33 TDK1 81FTS" 04164_ GOLEM Unit springs to life. 04165_ as-99980 released from Mobile Assembly Unit. 04165_ AG-38187 GOLEM Unit beginning Asb. Alloy Leg integration. 04165_ Slug penetrates Wall. 04169_ GOLEM Unit springs to life. 04169_ Slug penetrates Wall. 04170_ AG-65062 GOLEM Unit beginning Asb. Alloy Leg integration. 04171_ Penetrated by Slug. Map ----- +----------------------------------------------------+ | ????????????????????????????????????## | | ???????????????????????????????????## | | ???????????????????????????????????# | | ???????????????????????????????????# | | ?????????" [ ??????????????????????# | | ??????### ????? #?# ?????????# | | ?????"" * ? # ?????????# | | ????? ##????????# | | ????? #????????# | | ????? * ???????# ## | | ????? ! #???????## #?# | | ?????? b ##???????##?## | | ??????! ! lG * ! #?????????## | | ??????? aG * ! #?????????# | | ????????! ! #?????????# | | ??????###Ga ! h #????????## | | ??????#GGG = = #????????# | | ??????#GGG a l #????????# | | ???????" !! #????????# | | ???????"! g* ##???????# # | | ???????"GGa l = #??###### # | | ???????## a = = #?## ## # | | ????????" ### # | | ????????" ## # | | ????????" * * # | | ????????""" @ g # | | ????????" = | | ????????"" h ###### ### | | ????????" #????###% "# | | ????????"" ##??????#*### | | ????????" # # #???????# ? | | ????????" #### ## ## ##???????##### | | ????????""" ###??# ## ####????????????? | | ?????????? ????#### #???????????????? | | ?????????######????????#????????????????? | | | | | | | | | | | | | | | | | | | | | | | | | | | | | | | +----------------------------------------------------+ Best States ------------- Heat Dissipation 61 Energy Generation 21 Energy Capacity 350 Matter Stores 300 Matter Capacity 300 Sight Range 18 Terrain Scan Density 10 Armor Coverage 800 Weapon Shielding 100 Evasion (%) 57 Core Analysis 6 Recoil Reduction 4 Item Schematics ----------------- Beam Cannon | -8/Materials | Extracted Robot Schematics ------------------ None Fabricated ------------ Nothing Repaired ---------- Nothing Studied --------- Hover Unit | -8/Materials | Hacked Gatling Laser | -7/Factory | Hacked Alien Tech Used ----------------- None Achievements -------------- I Know It's In Here Somewhere Challenges ------------ None Game ------ Seed AluminumArmageddonRailcannon Manual? 0 Play Time 00:48:22 Cumulative 1207.4 hours Start 2025.10.26 @ 10:53:11 End 2025.10.26 @ 11:56:51 Sessions 1 Manual Loads 0 Difficulty Rogue Special Mode None Game No. 1486 Rogue 1202 Adventurer 124 Explorer 160 Win Type - Total 56 Types 42/0/8/4/1/0/0/1/0/0 Lore% 92 Gallery% 86 Achievement% 62 Wizard Run 0 Options --------- Layout 0 ASCII 0 Keyboard 1 Movement Numpad Keybinds 0 Fullscreen 2 Font 18/X11 Map View 76x50 Zoom Use 0% Tactical HUD 1 Map Filters NONE Filters NONE Steam 1 RUN: 6d111a2b-bd1a-4bd2-98ad-df8ef11a2fcc